bitfinex/quotes_ETHUSD_20251122
["timestamp","ask_amount","ask_price","bid_price","bid_amount"]
[1763819830841,0.4812,2722.0,2721.8,0.1]
[1763819831041,0.6656,2721.9,2721.8,0.1]
[1763819831574,1.1468,2721.9,2721.8,0.1]
[1763819831978,0.124,2722.4,2721.8,3.77403923]
[1763819832155,0.4788,2721.9,2721.8,3.67403923]
[1763819832354,0.4812,2722.3,2721.8,3.77403923]
[1763819832668,0.4812,2722.3,2721.9,0.1]
[1763819833043,0.4788,2722.0,2721.9,3.77390425]
[1763819835691,0.4812,2722.3,2721.9,4.14684329]
[1763819835873,0.124,2722.4,2722.2,0.1]
[1763819836369,0.4788,2722.3,2722.2,0.1]
[1763819836783,0.96,2722.3,2722.2,0.1]
[1763819837291,0.124,2722.4,2722.1,0.1]
[1763819837471,0.6052,2722.4,2722.2,3.67343017]
[1763819837643,0.6052,2722.4,2722.3,0.1]
[1763819838083,0.124,2722.4,2722.3,0.1]
[1763819838427,1.084,2722.4,2722.3,0.1]
[1763819839804,0.6028,2722.4,2722.3,0.1]
[1763819843504,0.124,2722.4,2722.3,3.77336443]
[1763819843806,0.124,2722.4,2722.3,9.10984727]
[1763819844169,0.124,2722.4,2722.3,9.34604727]
[1763819844499,0.124,2722.4,2722.3,9.44604727]
[1763819844809,0.002,2723.4,2722.3,9.10984727]
[1763819845010,0.6052,2723.2,2722.8,0.1]
[1763819845363,0.4812,2723.1,2722.8,0.1]
[1763819845680,0.4788,2722.9,2722.8,0.1]
[1763819846081,0.4788,2722.9,2722.8,3.77268987]
[1763819846285,0.4812,2723.1,2722.8,3.77268987]
[1763819846590,0.124,2723.2,2723.0,0.1]
[1763819846907,0.6052,2723.2,2723.0,0.1]
[1763819847107,0.4788,2723.1,2723.0,0.1]
[1763819847304,0.124,2723.2,2723.0,0.1]
[1763819847491,0.124,2723.2,2723.0,0.4362]
[1763819847809,0.124,2723.2,2723.1,0.1]
[1763819848183,0.124,2723.2,2723.1,3.77228526]
[1763819848369,0.6028,2723.2,2723.1,3.77228526]
[1763819848769,0.124,2723.2,2723.1,4.10848526]
[1763819849015,0.6028,2723.2,2723.1,3.77228526]
[1763819849172,1.084,2723.2,2723.0,0.1]
[1763819849665,0.6028,2723.2,2723.0,0.1]
[1763819850070,0.6028,2723.2,2723.0,3.77238993]
[1763819850521,0.96,2723.1,2722.6,7.58293044]
[1763819850671,0.4788,2723.0,2722.6,11.25589011]
[1763819850870,0.96,2723.0,2722.9,0.1]
[1763819851106,0.4788,2722.7,2722.6,8.48992308]
[1763819851604,0.668,2722.9,2722.7,0.1]
[1763819851803,0.1868,2722.9,2722.7,0.1]
[1763819852010,0.96,2722.8,2722.6,0.90699264]
[1763819852308,0.4788,2722.7,2722.4,0.1]
[1763819852609,0.124,2722.6,2722.4,0.1]
[1763819852911,0.4788,2722.5,2722.4,0.1]
[1763819853633,0.96,2722.5,2722.3,0.90799264]
[1763819853795,0.4788,2722.4,2722.3,0.90799264]
[1763819854092,0.96,2722.4,2722.3,0.90799264]
[1763819854492,0.124,2722.6,2722.3,4.68135707]
[1763819854706,0.124,2722.6,2722.3,1.00799264]
[1763819854707,0.4788,2722.4,2722.3,1.00799264]
[1763819854926,0.4788,2722.4,2722.3,4.68135707]
[1763819855826,0.124,2722.6,2722.3,5.11495707]
[1763819856026,0.6002,2722.6,2722.3,5.11495707]
[1763819856228,0.478,2722.4,2722.3,1.00799264]
[1763819856527,0.478,2722.4,2722.3,0.90799264]
[1763819856735,0.9542,2722.4,2722.3,0.001]
[1763819859039,0.9534,2722.4,2722.3,0.001]
[1763819861134,0.478,2722.4,2722.3,0.001]
[1763819861833,0.9534,2722.4,2722.3,0.001]
[1763819862230,0.124,2722.6,2722.3,0.5346]
[1763819862540,0.5994,2722.6,2722.3,0.5346]
[1763819862740,0.5994,2722.6,2722.3,0.101]
[1763819862944,0.4633,2722.4,2722.3,0.001]
[1763819863321,0.9387,2722.4,2722.3,0.001]
[1763819863813,0.9387,2722.4,2722.3,3.67436443]
[1763819864543,0.124,2722.6,2722.3,3.77436443]
[1763819864748,0.5994,2722.6,2722.3,4.20796443]
[1763819864931,0.4633,2722.4,2722.3,3.77436443]
[1763819866439,0.4633,2722.4,2722.3,0.101]
[1763819867346,0.9387,2722.4,2722.3,0.001]
[1763819870856,0.9387,2722.4,2722.3,3.53350008]
[1763819871058,0.9407,2722.4,2722.3,3.53350008]
[1763819877859,0.4653,2722.4,2722.3,3.53350008]
[1763819878172,0.002,2722.4,2722.3,7.49960016]
[1763819878773,0.002,2722.4,2722.3,11.60656459]
[1763819878939,0.126,2722.4,2722.3,11.27296459]
[1763819880359,1.0647,2722.4,2722.3,3.53350008]
[1763819881378,1.0647,2722.4,2722.3,0.001]
[1763819885977,1.470204,2722.4,2722.3,0.001]
[1763819892912,1.67486124,2722.4,2722.3,0.001]
[1763819895419,2.01578537,2722.4,2722.3,0.001]
[1763819896897,3.49921687,2722.4,2722.3,0.001]
[1763819897809,4.08592278,2722.4,2722.3,0.001]
[1763819899038,4.08592278,2722.4,2722.0,0.001]
[1763819899039,1.31249664,2722.3,2722.0,0.001]
[1763819899226,0.819104,2722.1,2722.0,0.001]
[1763819899540,1.65962813,2722.1,2722.0,0.001]
[1763819899940,2.24633404,2722.1,2722.0,0.001]
[1763819900349,2.24568025,2722.1,2722.0,0.001]
[1763819900506,3.50879941,2722.1,2722.0,0.001]
[1763819902221,7.45370923,2722.1,2722.0,0.001]
[1763819902424,6.31134423,2722.1,2722.0,0.001]
[1763819902834,4.06889823,2722.1,2722.0,0.001]
[1763819903146,2.9220935,2722.1,2722.0,0.001]
[1763819903603,2.58182316,2722.1,2722.0,0.001]
[1763819903803,1.26932652,2722.1,2722.0,0.001]
[1763819904145,1.0372,2722.1,2722.0,0.001]
[1763819904641,1.442704,2722.1,2722.0,0.001]
[1763819905945,0.9132,2722.1,2722.0,0.001]
[1763819906148,0.5376,2722.1,2722.0,0.001]
[1763819906356,0.943104,2722.1,2722.0,0.001]
[1763819906518,1.442704,2722.1,2722.0,0.001]
[1763819907336,1.51955799,2722.1,2722.0,0.001]
[1763819907668,2.01915799,2722.1,2722.0,0.001]
[1763819909141,2.22127379,2722.1,2722.0,0.001]
[1763819910432,1.72167379,2722.1,2722.0,0.001]
[1763819910754,2.22127379,2722.1,2722.0,0.001]
[1763819911251,1.6448198,2722.1,2722.0,0.001]
[1763819911653,0.943104,2722.1,2722.0,0.001]
[1763819912023,0.124,2722.1,2722.0,0.001]
[1763819912368,0.5921,2722.1,2722.0,0.001]
[1763819912568,1.0917,2722.1,2722.0,0.001]
[1763819913246,0.5921,2722.1,2722.0,0.001]
[1763819913445,0.124,2722.1,2722.0,0.001]
[1763819913877,1.0917,2722.1,2722.0,0.001]
[1763819917283,0.5921,2722.1,2722.0,0.001]
[1763819919061,0.124,2722.1,2722.0,0.001]
[1763819919562,0.5888,2722.1,2722.0,0.001]
[1763819920432,1.0561,2722.1,2722.0,0.001]
[1763819922252,0.124,2722.1,2722.0,0.4346]
[1763819923983,0.124,2722.1,2722.0,0.8682]
[1763819928184,0.124,2722.1,2722.0,4.65499399]
[1763819928487,0.124,2722.1,2722.0,8.32876327]
[1763819930460,0.124,2722.1,2722.0,4.65499399]
[1763819930656,0.124,2722.1,2722.0,0.4346]
[1763819931896,0.124,2722.1,2722.0,0.001]
[1763819932063,0.5888,2722.1,2722.0,0.001]
[1763819933376,1.0561,2722.1,2722.0,0.001]
[1763819934593,0.5888,2722.1,2722.0,0.001]
[1763819934800,1.0561,2722.1,2722.0,0.001]
[1763819936805,0.124,2722.1,2722.0,0.4346]
[1763819939108,1.0561,2722.1,2722.0,0.001]
[1763819939314,0.5888,2722.1,2722.0,0.001]
[1763819939866,0.124,2722.1,2722.0,0.8682]
[1763819940007,0.5888,2722.1,2722.0,0.001]
[1763819940795,0.124,2722.1,2722.0,0.4346]
[1763819941477,1.0561,2722.1,2722.0,0.001]
[1763819943918,0.124,2722.1,2722.0,0.4346]
[1763819944511,0.002,2722.3,2722.0,0.90493769]
[1763819944694,0.002,2722.3,2722.2,4.31939399]
[1763819945113,0.002,2722.3,2722.2,5.75998663]
[1763819945431,0.002,2722.3,2722.2,9.433486]
[1763819945718,0.126,2722.6,2722.5,0.1]
[1763819945921,0.126,2722.6,2722.5,5.22738663]
[1763819946134,0.126,2722.6,2722.5,5.66098663]
[1763819946887,0.126,2722.6,2722.5,6.87114618]
[1763819947521,0.002,2722.9,2722.6,0.90699264]
[1763819947728,0.002,2722.9,2722.6,1.87419264]
[1763819950346,0.002,2722.9,2722.6,5.54715231]
[1763819950547,0.002,2722.9,2722.6,5.69431474]
[1763819952447,0.002,2722.9,2722.6,0.4336]
[1763819952940,0.1859,2722.9,2722.6,0.4336]
[1763819953450,0.1859,2722.9,2722.3,4.10689363]
[1763819953616,0.1859,2722.9,2722.3,4.20689363]
[1763819954116,0.1859,2722.9,2722.3,0.90699264]
[1763819954317,0.1859,2722.9,2722.3,3.67333183]
[1763819954861,0.1859,2722.9,2722.2,4.77943695]
[1763819955050,0.1859,2722.9,2722.2,5.21303695]
[1763819955822,0.1859,2722.9,2722.3,0.47033364]
[1763819956017,0.1859,2722.9,2722.3,0.4336]
[1763819956440,0.1859,2722.9,2722.3,4.10688453]
[1763819956760,0.002,2722.9,2722.6,0.4336]
[1763819956962,0.002,2722.9,2722.6,0.5336]
[1763819957323,0.002,2722.9,2722.6,0.4336]
[1763819958855,0.002,2722.9,2722.6,4.10655967]
[1763819959164,0.002,2722.9,2722.6,0.4336]
[1763819959548,0.002,2722.9,2722.6,4.10655967]
[1763819959745,0.002,2722.9,2722.6,0.4336]
[1763819960761,0.4991,2722.7,2722.5,0.001]
[1763819962021,0.3648,2722.6,2722.5,0.001]
[1763819962246,0.002,2722.7,2722.5,0.001]
[1763819963980,0.4971,2722.6,2722.5,0.001]
[1763819964145,1.399204,2722.6,2722.5,0.001]
[1763819967384,0.9937,2722.6,2722.5,0.001]
[1763819967574,0.002,2722.7,2722.5,0.001]
[1763819967882,0.4971,2722.6,2722.5,0.001]
[1763819968691,0.9937,2722.6,2722.5,0.001]
[1763819969181,0.4971,2722.6,2722.5,0.001]
[1763819969489,0.124,2722.6,2722.5,4.21930944]
[1763819970419,0.124,2722.6,2722.5,7.89240402]
[1763819970710,0.124,2722.6,2722.5,4.21930944]
[1763819970911,0.6211,2722.6,2722.5,3.78570944]
[1763819971115,0.6211,2722.6,2722.5,0.001]
[1763819973615,1.1177,2722.6,2722.5,0.001]
[1763819974223,0.124,2722.6,2722.5,0.4346]
[1763819974519,0.124,2722.6,2722.5,0.001]
[1763819974520,1.1177,2722.6,2722.5,0.001]
[1763819974703,0.124,2722.6,2722.5,0.001]
[1763819975917,0.124,2722.6,2722.5,0.4346]
[1763819976818,0.124,2722.6,2722.5,3.96632836]
[1763819977024,0.124,2722.6,2722.5,8.07302294]
[1763819977541,0.124,2722.6,2722.5,3.96632836]
[1763819978913,0.6047,2722.6,2722.5,0.001]
[1763819980717,1.102,2722.6,2722.5,0.001]
[1763819981911,0.6047,2722.6,2722.5,0.001]
[1763819982616,1.102,2722.6,2722.5,0.001]
[1763819984222,0.6047,2722.6,2722.5,0.001]
[1763819985424,0.124,2722.6,2722.5,0.001]
[1763819985624,0.6047,2722.6,2722.5,0.001]
[1763819985813,1.102,2722.6,2722.5,0.001]
[1763819987724,0.124,2722.6,2722.5,0.001]
[1763819987928,0.124,2722.6,2722.5,3.53272836]
[1763819988099,0.124,2722.6,2722.5,3.96632836]
[1763819988691,0.002,2722.7,2722.5,7.63942294]
[1763819988885,0.002,2722.7,2722.6,0.4336]
[1763819989192,0.126,2722.7,2722.6,0.8672]
[1763819990006,0.126,2722.7,2722.6,4.54015967]
[1763819992611,0.126,2722.7,2722.6,4.10655967]
[1763819993027,0.126,2722.7,2722.6,4.54015967]
[1763819993243,0.126,2722.7,2722.6,4.64015967]
[1763819995546,0.126,2722.7,2722.5,0.001]
[1763819995736,0.126,2722.7,2722.5,3.67403159]
[1763819996349,0.126,2722.7,2722.6,0.5336]
[1763819997245,0.126,2722.7,2722.6,4.20655967]
[1763819997552,0.126,2722.7,2722.6,4.10655967]
[1763819997716,0.002,2722.7,2722.6,4.67688926]
[1763819998120,0.002,2722.7,2722.6,5.5838819]
[1763819998317,0.002,2722.7,2722.6,5.54715231]
[1763819998545,0.002,2722.7,2722.6,5.5838819]
[1763819998753,0.002,2722.7,2722.6,5.54715231]
[1763819999748,0.002,2722.7,2722.6,5.69431474]
[1763820000541,0.002,2722.7,2722.6,5.54715231]
[1763820000867,0.002,2722.7,2722.6,5.11355231]
[1763820001373,0.002,2722.7,2722.6,4.10655967]
[1763820001570,0.002,2722.7,2722.6,4.20655967]
[1763820001895,0.002,2722.7,2722.6,5.5838819]
[1763820002040,0.002,2722.7,2722.6,5.54715231]
[1763820003643,0.002,2722.7,2722.6,1.44059264]
[1763820003891,0.4827,2722.7,2722.5,3.67403537]
[1763820004096,0.002,2722.7,2722.6,0.4336]
[1763820004300,0.002,2722.7,2722.6,0.1]
[1763820004993,0.002,2722.7,2722.6,0.4336]
[1763820005363,0.98,2722.7,2722.5,0.001]
[1763820005675,0.374,2722.6,2722.5,0.001]
[1763820006048,0.8369,2722.6,2722.5,0.001]
[1763820007621,0.002,2722.7,2722.5,0.4346]
[1763820007894,0.002,2722.7,2722.6,0.5336]
[1763820008063,0.002,2722.7,2722.6,0.4336]
[1763820008260,0.002,2722.7,2722.6,0.9672]
[1763820008475,0.002,2722.7,2722.6,0.5336]
[1763820008657,0.002,2722.7,2722.6,0.4336]
[1763820009446,0.002,2722.7,2722.6,3.67295967]
[1763820009652,0.002,2722.7,2722.6,4.10655967]
[1763820010167,0.002,2722.7,2722.6,4.67688926]
[1763820010367,0.002,2722.7,2722.6,4.54015967]
[1763820010574,0.002,2722.7,2722.6,4.64015967]
[1763820012674,0.002,2722.9,2722.7,4.78499264]
[1763820012983,0.002,2723.3,2723.2,0.1]
[1763820013386,0.002,2723.3,2723.2,0.5336]
[1763820013682,0.002,2723.3,2723.2,5.11274305]
[1763820013986,0.4902,2723.3,2723.2,4.57914305]
[1763820014286,0.002,2723.3,2723.2,5.11274305]
[1763820014487,0.002,2723.3,2723.2,5.54634305]
[1763820014674,0.002,2723.9,2723.6,0.4296]
[1763820014985,0.117,2724.9,2723.9,0.1]
[1763820015200,0.117,2724.9,2724.0,0.90699264]
[1763820015403,0.117,2724.9,2724.2,0.6926]
[1763820015615,0.117,2724.9,2724.2,5.27039507]
[1763820015815,0.117,2724.9,2724.2,5.69999507]
[1763820018310,0.117,2724.9,2724.2,4.67779507]
[1763820018618,0.4649,2724.6,2724.2,4.57779507]
[1763820020578,0.002,2724.6,2724.2,5.00739507]
[1763820020778,0.002,2724.6,2724.2,4.67779507]
[1763820021779,0.9531,2724.3,2723.9,8.39296182]
[1763820022111,0.9531,2724.3,2724.0,0.90699264]
[1763820022311,0.4629,2724.2,2724.0,0.90699264]
[1763820022474,0.4882,2724.1,2724.0,0.90699264]
[1763820022877,0.9511,2724.1,2723.9,0.90699264]
[1763820023089,0.4263,2724.0,2723.9,0.90699264]
[1763820023411,0.8892,2724.0,2723.8,3.67126122]
[1763820023588,0.6716,2723.9,2723.7,3.67143418]
[1763820023788,1.1345,2723.9,2723.7,3.67143418]
[1763820023996,0.002,2724.3,2723.7,3.67143418]
[1763820023997,0.184,2724.2,2723.7,3.67143418]
[1763820024200,0.184,2724.2,2723.8,0.1]
[1763820024510,0.6469,2724.2,2723.8,0.1]
[1763820024694,0.002,2724.3,2723.9,8.39299905]
[1763820024900,0.002,2724.3,2724.0,0.13671071]
[1763820025493,0.4649,2724.3,2724.0,0.13671071]
[1763820026510,0.4649,2724.3,2724.2,0.4296]
[1763820026511,0.002,2724.3,2724.2,0.4296]
[1763820026674,0.002,2724.3,2724.2,4.20040243]
[1763820026879,0.002,2724.3,2724.2,4.66671045]
[1763820027509,0.002,2724.3,2724.2,4.63000243]
[1763820028776,0.002,2724.3,2724.2,5.53699507]
[1763820030211,0.002,2724.6,2724.5,0.1]
[1763820030515,0.002,2724.6,2724.5,6.15838497]
[1763820031413,0.002,2724.6,2724.5,9.8287832]
[1763820033019,0.4902,2724.6,2724.5,9.2991832]
[1763820034123,0.002,2724.6,2724.5,9.2991832]
[1763820034320,0.002,2724.6,2724.5,9.7287832]
[1763820034524,0.002,2724.6,2724.5,10.2583832]
[1763820034726,0.002,2724.6,2724.5,9.8287832]
[1763820035824,0.002,2724.6,2724.5,10.2583832]
[1763820037550,0.002,2724.6,2724.5,9.8287832]
[1763820038855,0.002,2724.6,2724.5,10.09656402]
[1763820039620,0.002,2724.6,2724.5,10.52616402]
[1763820042621,0.002,2724.6,2724.5,10.09656402]
[1763820043622,0.002,2724.6,2724.5,10.52616402]
[1763820044663,0.002,2724.6,2724.5,10.09656402]
[1763820045048,0.002,2724.6,2724.5,10.52616402]
[1763820046122,0.002,2724.9,2724.5,21.64496048]
[1763820046469,0.002,2724.9,2724.8,0.5296]
[1763820046663,0.002,2725.2,2725.0,7.33944954]
[1763820046839,0.002,2725.2,2725.1,6.52346579]
[1763820047159,0.002,2725.3,2725.2,0.1]
[1763820047361,0.002,2725.6,2725.5,0.1]
[1763820047537,0.002,2725.6,2725.5,6.42616579]
[1763820047738,0.002,2725.6,2725.5,5.99656579]
[1763820047945,0.4563,2725.6,2725.5,1.00699264]
[1763820048138,0.002,2725.6,2725.5,6.42616579]
[1763820048341,0.002,2725.6,2725.5,5.99656579]
[1763820048983,0.002,2725.6,2725.5,9.66561734]
[1763820049480,0.4563,2725.6,2725.5,9.66561734]
[1763820051974,0.9497,2725.6,2725.5,5.99656579]
[1763820052278,0.9497,2725.6,2725.5,0.90699264]
[1763820052470,0.9497,2725.6,2725.5,4.57604419]
[1763820054848,0.002,2725.9,2725.5,14.31541185]
[1763820055046,0.002,2725.9,2725.8,0.4296]
[1763820055252,0.002,2725.9,2725.8,4.19824773]
[1763820056449,0.6554,2725.9,2725.8,3.66864773]
[1763820056654,1.1488,2725.9,2725.8,3.66864773]
[1763820058148,0.4563,2725.9,2725.8,3.66864773]
[1763820058351,0.4563,2725.9,2725.8,3.76864773]
[1763820058550,0.002,2725.9,2725.8,3.76864773]
[1763820058770,0.002,2725.9,2725.8,4.2349342]
[1763820058978,0.002,2725.9,2725.8,4.19824773]
[1763820059591,0.00016551,2725.9,2725.8,4.19824773]
[1763820060459,0.00016551,2725.9,2725.8,5.14192684]
[1763820060651,0.00016551,2725.9,2725.8,5.53484037]
[1763820060859,0.00016551,2725.9,2725.8,5.10524037]
[1763820061677,0.00016551,2725.9,2725.8,5.53484037]
[1763820063378,0.002,2726.2,2726.1,0.1]
[1763820063584,0.002,2726.2,2726.1,10.30029224]
[1763820063898,0.002,2726.2,2726.1,10.6932098]
[1763820064400,0.6774,2728.3,2726.4,0.4296]
[1763820064707,0.6774,2728.3,2726.2,0.885104]
[1763820064708,0.6774,2728.3,2728.0,4.98957315]
[1763820064853,0.6774,2728.3,2728.2,0.1]
[1763820064854,0.184,2728.3,2728.2,0.1]
[1763820065057,0.6383,2728.3,2728.2,0.1]
[1763820065257,0.4543,2728.3,2728.2,0.1]
[1763820065497,0.4934,2728.6,2728.3,7.33057214]
[1763820065697,0.4595,2729.1,2728.4,0.1]
[1763820066189,0.4652,2728.5,2728.4,0.1]
[1763820066556,0.4595,2728.7,2728.4,5.08957315]
[1763820066761,0.4595,2728.7,2728.6,0.1]
[1763820067182,0.9247,2728.7,2728.6,0.1]
[1763820067663,0.9247,2728.7,2728.6,3.76488309]
[1763820067863,0.9247,2728.7,2728.6,0.1]
[1763820068161,0.9247,2728.7,2728.4,8.65469224]
[1763820068361,0.3954,2728.5,2728.4,8.65469224]
[1763820068573,0.3954,2728.5,2728.4,8.75469224]
[1763820068773,0.4595,2728.9,2728.4,8.75469224]
[1763820069195,0.4595,2728.9,2728.4,8.65469224]
[1763820069382,0.4652,2728.5,2728.2,3.66538843]
[1763820069585,0.3231,2729.5,2728.3,0.1]
[1763820069586,0.3954,2728.4,2728.3,0.1]
[1763820069897,0.4595,2728.7,2728.4,0.1]
[1763820070373,0.4652,2728.5,2728.4,0.1]
[1763820071071,0.9247,2728.5,2728.2,0.1]
[1763820071395,0.4595,2728.5,2728.1,4.57254742]
[1763820071598,0.4595,2729.0,2728.2,0.1]
[1763820071801,0.4595,2728.9,2728.4,0.1]
[1763820072028,0.1991,2729.5,2729.1,0.4296]
[1763820072302,0.4595,2730.3,2729.7,0.1]
[1763820072496,0.4595,2730.3,2729.8,4.98957315]
[1763820072904,0.4595,2730.3,2730.2,0.1]
[1763820073061,0.199,2730.4,2730.2,5.08957315]
[1763820073260,0.124,2730.7,2730.2,5.08957315]
[1763820073261,0.5835,2730.7,2730.2,5.08957315]
[1763820073576,0.4595,2730.6,2730.3,0.1]
[1763820073775,0.4595,2730.6,2730.4,3.66246703]
[1763820074007,0.4595,2730.6,2730.3,3.76255355]
[1763820074382,0.4652,2730.4,2730.2,0.1]
[1763820074896,0.5835,2730.7,2730.2,0.1]
[1763820075101,0.4595,2731.8,2730.6,0.4296]
[1763820075336,0.124,2731.7,2730.9,4.98957315]
[1763820075532,0.124,2731.7,2731.2,0.1]
[1763820075744,0.4595,2731.6,2730.9,8.75128824]
[1763820076033,0.4595,2731.6,2730.9,8.75135222]
[1763820076203,0.4595,2731.6,2730.9,5.08957315]
[1763820076401,0.199,2732.0,2731.3,4.98957315]
[1763820076736,0.4595,2731.9,2731.3,4.98957315]
[1763820076905,0.4595,2731.9,2731.5,0.1]
[1763820077106,0.4652,2731.4,2731.3,5.08957315]
[1763820078008,0.4595,2731.6,2731.3,5.08957315]
[1763820078009,0.4595,2731.9,2731.3,5.08957315]
[1763820078441,0.199,2732.0,2731.3,8.75082505]
[1763820078745,0.4652,2731.4,2731.3,5.08957315]
[1763820079114,0.4615,2731.7,2731.3,5.08957315]
[1763820079449,0.002,2731.7,2731.6,0.1]
[1763820079619,0.002,2731.7,2731.6,0.5296]
[1763820079942,0.002,2731.7,2731.6,5.09745074]
[1763820081747,0.4672,2731.7,2731.6,1.00699264]
[1763820081950,0.4672,2731.7,2731.4,4.98957315]
[1763820082117,0.002,2731.7,2731.6,0.1]
[1763820082507,0.4672,2731.7,2731.6,0.1]
[1763820082931,0.002,2731.7,2731.6,0.5296]
[1763820083235,0.002,2731.7,2731.6,0.1]
[1763820083441,0.002,2731.7,2731.6,0.5296]
[1763820083643,0.002,2731.7,2731.6,0.8592]
[1763820083968,0.002,2731.7,2731.6,0.9592]
[1763820084264,0.002,2731.7,2731.6,5.52705074]
[1763820085664,0.002,2731.7,2731.6,4.99745074]
[1763820085871,0.002,2731.7,2731.6,5.09745074]
[1763820086734,0.002,2731.7,2731.6,6.02515932]
[1763820086930,0.002,2732.0,2731.9,5.99656579]
[1763820087173,0.002,2732.0,2731.9,6.42616579]
[1763820087336,0.002,2732.0,2731.9,6.85576579]
[1763820087538,0.002,2732.0,2731.9,6.42616579]
[1763820088235,0.002,2732.0,2731.9,10.08662188]
[1763820088432,0.002,2732.0,2731.9,10.92172588]
[1763820088669,0.002,2732.3,2732.2,0.1]
[1763820089258,0.9267,2732.3,2732.0,0.94359586]
[1763820089589,0.9267,2732.3,2731.5,0.4296]
[1763820089590,0.4652,2732.1,2731.6,0.1]
[1763820089763,0.4652,2731.7,2731.6,0.1]
[1763820090092,0.4595,2732.2,2731.9,0.1]
[1763820090491,0.002,2732.3,2732.2,0.1]
[1763820090810,0.4672,2732.3,2732.2,0.1]
[1763820091221,0.9267,2732.3,2732.1,1.00699264]
[1763820091426,0.4615,2732.3,2732.1,1.00699264]
[1763820091720,0.4652,2732.2,2732.1,1.00699264]
[1763820093104,0.9247,2732.2,2731.7,7.62869567]
[1763820093409,0.4595,2732.2,2731.8,0.90699264]
[1763820093716,0.4595,2732.1,2732.0,0.1]
[1763820094156,0.002,2732.3,2732.0,5.48937637]
[1763820094339,0.002,2732.3,2732.2,0.5632]
[1763820094646,0.002,2732.3,2732.2,0.1]
[1763820095243,0.002,2732.3,2732.2,4.22325416]
[1763820095411,0.002,2732.3,2732.2,0.5632]
[1763820095610,0.4672,2732.3,2731.2,1.0897]
[1763820095857,0.4672,2732.3,2731.1,0.1268]
[1763820095858,0.002,2732.3,2731.1,0.1268]
[1763820096009,0.002,2732.3,2731.5,0.1]
[1763820096210,0.4775,2732.2,2731.4,0.1]
[1763820096416,0.4775,2732.2,2731.2,0.1]
[1763820097262,0.4606,2731.3,2731.2,0.1]
[1763820097433,0.124,2731.8,2731.2,0.1]
[1763820097766,0.1803,2731.6,2731.2,0.1]
[1763820098254,0.4763,2731.5,2731.3,0.1]
[1763820099215,0.1803,2731.6,2731.3,3.76120068]
[1763820099522,0.1803,2731.8,2731.6,0.1]
[1763820100360,0.48,2731.7,2731.6,0.1]
[1763820101520,0.48,2731.7,2731.4,0.1]
[1763820101947,0.1803,2731.8,2731.4,0.1]
[1763820102147,0.4763,2731.7,2731.4,0.1]
[1763820104847,0.4763,2731.7,2731.1,5.59839112]
[1763820105045,0.4763,2731.7,2731.3,0.1]
[1763820105445,0.4763,2731.7,2731.1,5.69839112]
[1763820105770,0.4763,2731.7,2731.1,5.59839112]
[1763820105949,0.4763,2731.7,2731.2,0.1]
[1763820107261,0.4763,2731.7,2730.8,3.6619007]
[1763820107461,0.4763,2731.7,2730.9,1.00699264]
[1763820107633,0.1803,2731.8,2731.1,4.79139848]
[1763820107839,0.3043,2731.8,2731.6,0.1]
[1763820108481,0.48,2731.7,2731.6,0.1]
[1763820108779,0.48,2731.7,2731.3,4.69139848]
[1763820108950,0.48,2731.7,2731.3,4.79139848]
[1763820109570,0.48,2731.7,2731.5,0.1]
[1763820110069,0.1803,2731.9,2731.3,8.35263072]
[1763820110395,0.1803,2731.9,2731.4,0.1]
[1763820110560,0.1803,2731.9,2731.7,0.1]
[1763820110756,0.002,2732.3,2731.8,0.4522]
[1763820111061,0.002,2732.3,2732.2,0.5522]
[1763820111667,0.002,2732.3,2732.2,4.21225416]
[1763820112060,0.002,2732.3,2732.2,4.70755416]
[1763820113198,0.002,2732.3,2732.2,4.21225416]
[1763820114098,0.002,2732.3,2732.2,5.6145468]
[1763820114879,0.002,2732.3,2732.2,5.65114734]
[1763820115082,0.002,2732.3,2732.2,5.6145468]
[1763820117206,0.482,2732.3,2732.2,1.00699264]
[1763820117527,0.482,2732.3,2732.2,0.1]
[1763820118021,0.9583,2732.3,2732.1,0.001]
[1763820118184,0.0283,2732.2,2732.1,0.001]
[1763820118391,0.5046,2732.2,2732.1,0.001]
[1763820119500,0.50167201,2732.2,2732.1,0.001]
[1763820121289,0.4755,2732.0,2731.6,0.001]
[1763820121476,0.2102,2731.7,2731.6,0.001]
[1763820121689,0.3342,2731.7,2731.6,0.001]
[1763820121882,0.8105,2731.7,2731.6,0.001]
[1763820122629,0.3043,2731.9,2731.6,0.101]
[1763820122991,0.124,2731.9,2731.6,0.101]
[1763820123195,0.124,2731.9,2731.8,0.1]
[1763820123623,0.604,2731.9,2731.8,0.1]
[1763820124129,1.2606,2731.9,2731.7,0.1]
[1763820124343,0.0254,2731.8,2731.7,0.1]
[1763820124959,0.5017,2731.8,2731.6,0.001]
[1763820125257,0.4754,2731.7,2731.6,0.001]
[1763820125632,0.9517,2731.7,2731.6,0.001]
[1763820126036,1.357204,2731.7,2731.6,0.001]
[1763820127163,0.9517,2731.7,2731.6,0.001]